bitfinex/quotes_SOLUSD_20250821
["timestamp","ask_amount","ask_price","bid_price","bid_amount"]
[1755813486387,3.67884119,181.57,181.56,0.7]
[1755813486585,46.09884119,181.57,181.56,0.7]
[1755813487086,46.09884119,181.57,181.56,17.265891]
[1755813487814,46.09884119,181.57,181.56,16.595891]
[1755813488287,46.09884119,181.57,181.56,17.265891]
[1755813488688,46.09884119,181.57,181.56,16.595891]
[1755813488904,42.42,181.57,181.56,17.265891]
[1755813489210,46.09884119,181.57,181.56,17.265891]
[1755813506418,42.42,181.57,181.56,17.265891]
[1755813506625,46.09884119,181.57,181.56,17.265891]
[1755813509816,3.67884119,181.57,181.56,17.265891]
[1755813510023,46.07884119,181.57,181.56,17.265891]
[1755813513428,49.80178225,181.57,181.56,17.265891]
[1755813513628,46.07884119,181.57,181.56,17.265891]
[1755813517212,42.4,181.57,181.56,17.265891]
[1755813517605,3.67884119,181.57,181.56,17.265891]
[1755813517814,46.07884119,181.57,181.56,17.265891]
[1755813528938,46.07884119,181.57,181.56,16.595891]
[1755813529141,46.67884119,181.57,181.56,16.595891]
[1755813529338,50.68402993,181.57,181.56,0.03]
[1755813531627,50.68402993,181.57,181.56,26.03]
[1755813532743,50.68353489,181.57,181.56,26.03]
[1755813534936,50.08353489,181.57,181.56,0.03]
[1755813536424,50.68353489,181.57,181.56,0.03]
[1755813536831,50.68353489,181.57,181.56,26.03]
[1755813537652,50.68353489,181.57,181.56,0.03]
[1755813538139,50.68353489,181.57,181.56,16.59772]
[1755813542633,50.08353489,181.57,181.56,16.59772]
[1755813550067,50.68353489,181.57,181.56,16.59772]
[1755813552160,50.08353489,181.57,181.56,16.59772]
[1755813552467,68.40379338,181.57,181.56,0.03]
[1755813552768,68.40379338,181.57,181.56,26.03]
[1755813554261,64.2791289,181.57,181.56,26.03]
[1755813555157,68.40264041,181.57,181.56,26.03]
[1755813555461,68.40210624,181.57,181.56,26.03]
[1755813555665,64.2791289,181.57,181.56,26.03]
[1755813555860,68.40210624,181.57,181.56,26.03]
[1755813557370,64.2791289,181.57,181.56,26.03]
[1755813561664,63.6791289,181.57,181.56,26.03]
[1755813564352,63.6791289,181.57,181.56,0.03]
[1755813569080,67.80278023,181.57,181.56,0.03]
[1755813569454,67.80278023,181.57,181.56,26.03]
[1755813570063,67.80278023,181.57,181.56,0.03]
[1755813573570,72.45324343,181.57,181.56,0.03]
[1755813574093,67.80278023,181.57,181.56,0.03]
[1755813574270,63.6791289,181.57,181.56,0.03]
[1755813574478,72.46087469,181.57,181.56,0.03]
[1755813575187,72.46100174,181.57,181.56,0.03]
[1755813576694,58.86540773,181.57,181.56,0.69]
[1755813577064,54.21494453,181.57,181.56,17.259551]
[1755813580180,54.15494453,181.57,181.56,17.259551]
[1755813580480,54.67399809,181.57,181.56,17.259551]
[1755813580692,58.80857073,181.57,181.56,17.259551]
[1755813582094,16.46857073,181.57,181.56,17.259551]
[1755813582272,58.80857073,181.57,181.56,17.259551]
[1755813583895,58.80955486,181.57,181.56,17.259551]
[1755813584196,58.80959868,181.57,181.56,17.259551]
[1755813585699,58.80959868,181.57,181.56,16.599551]
[1755813585898,58.80959868,181.57,181.56,17.259551]
[1755813587502,16.46959868,181.57,181.56,17.259551]
[1755813587807,58.80959868,181.57,181.56,17.259551]
[1755813590112,58.81076144,181.57,181.56,17.259551]
[1755813592185,54.16029824,181.57,181.56,17.259551]
[1755813592613,58.81076144,181.57,181.56,17.259551]
[1755813593316,58.81133919,181.57,181.56,17.259551]
[1755813593702,58.8113312,181.57,181.56,17.259551]
[1755813595626,53.87654486,181.57,181.56,17.259551]
[1755813597299,11.53654486,181.57,181.56,17.259551]
[1755813597507,49.71921175,181.57,181.56,17.259551]
[1755813605721,50.00353489,181.57,181.56,16.599551]
[1755813606017,59.3874105,181.57,181.56,16.599551]
[1755813606408,59.38781133,181.57,181.56,16.599551]
[1755813607510,59.38781133,181.57,181.56,0.03]
[1755813608421,58.78781133,181.57,181.56,0.03]
[1755813609416,59.38781133,181.57,181.56,0.03]
[1755813609600,72.98340534,181.57,181.56,0.03]
[1755813609932,0.28432314,181.56,181.54,0.03]
[1755813610100,7.39921175,181.55,181.54,0.03]
[1755813610309,53.83302499,181.55,181.54,0.03]
[1755813610798,53.83331417,181.55,181.54,0.03]
[1755813613622,68.83300207,181.55,181.54,0.03]
[1755813613826,69.43300207,181.55,181.53,0.03]
[1755813614028,45.37905928,181.54,181.53,0.03]
[1755813614412,40.72859608,181.54,181.53,0.03]
[1755813615836,36.59449366,181.54,181.53,0.03]
[1755813616134,40.12776748,181.54,181.53,0.03]
[1755813618034,26.53217347,181.54,181.53,0.03]
[1755813619427,68.83217347,181.54,181.53,0.03]
[1755813620311,68.83028381,181.54,181.53,0.03]
[1755813623445,64.69889965,181.54,181.53,0.03]
[1755813624329,68.82872273,181.54,181.53,0.03]
[1755813625451,0.28432314,181.52,181.5,0.03]
[1755813625626,50.58021813,181.51,181.5,0.03]
[1755813625955,54.70998865,181.51,181.5,0.03]
[1755813626653,13.87991715,181.5,181.48,0.03]
[1755813626825,21.27581214,181.5,181.48,0.03]
[1755813628430,21.87581214,181.5,181.48,0.03]
[1755813628638,21.27581214,181.5,181.48,0.03]
[1755813629428,21.87581214,181.5,181.48,0.03]
[1755813629624,21.27581214,181.5,181.48,0.03]
[1755813630919,21.87581214,181.5,181.48,0.03]
[1755813631119,63.57581214,181.49,181.48,0.03]
[1755813631851,59.89697095,181.49,181.48,0.03]
[1755813632029,63.57581214,181.49,181.48,0.03]
[1755813637244,63.57581214,181.49,181.47,0.03]
[1755813637245,13.87991715,181.48,181.47,0.03]
[1755813637450,21.87581214,181.48,181.47,0.03]
[1755813638557,63.57581214,181.48,181.47,0.03]
[1755813639159,63.57581214,181.48,181.47,0.68]
[1755813639457,3.96316433,181.48,181.47,0.68]
[1755813639640,46.26316433,181.48,181.47,0.68]
[1755813640041,46.12100276,181.48,181.47,0.68]
[1755813640255,46.26316433,181.48,181.47,0.68]
[1755813641136,45.97884119,181.48,181.47,0.68]
[1755813642571,4.64667737,181.56,181.47,0.68]
[1755813642572,39.74,181.57,181.5,26.0]
[1755813642730,39.74,181.57,181.51,0.65]
[1755813642731,3.67884119,181.52,181.51,0.65]
[1755813642933,45.97884119,181.52,181.51,0.65]
[1755813643336,45.97884119,181.52,181.51,17.219551]
[1755813649748,45.95884119,181.52,181.51,17.219551]
[1755813657274,45.95884119,181.52,181.51,0.65]
[1755813657599,45.95884119,181.52,181.51,26.65]
[1755813657745,45.95884119,181.52,181.51,32.159585]
[1755813658993,45.95884119,181.52,181.5,26.67]
[1755813659155,3.67884119,181.51,181.5,26.67]
[1755813659952,3.67884119,181.51,181.5,0.67]
[1755813660152,3.67884119,181.51,181.5,26.67]
[1755813660774,3.67884119,181.51,181.5,0.67]
[1755813661067,3.67884119,181.51,181.5,26.0]
[1755813661253,3.67884119,181.51,181.5,26.67]
[1755813662571,3.67884119,181.51,181.5,26.0]
[1755813662985,4.27884119,181.51,181.48,0.7]
[1755813663293,3.67884119,181.49,181.48,26.7]
[1755813663874,3.67884119,181.49,181.48,26.03]
[1755813664481,3.67884119,181.49,181.48,26.7]
[1755813665155,3.67884119,181.49,181.48,26.03]
[1755813669796,3.67884119,181.49,181.48,0.03]
[1755813673574,3.96316433,181.49,181.48,0.03]
[1755813679092,3.96316433,181.49,181.48,0.75]
[1755813680417,3.67884119,181.49,181.48,0.75]
[1755813680797,0.06,181.51,181.48,0.75]
[1755813680995,45.93884119,181.5,181.48,0.75]
[1755813681192,42.26,181.49,181.48,0.75]
[1755813682702,42.26,181.49,181.48,26.75]
[1755813685105,45.93884119,181.49,181.48,26.75]
[1755813686623,46.53884119,181.49,181.48,0.03]
[1755813686924,50.53794937,181.49,181.48,0.03]
[1755813689326,0.28432314,181.48,181.47,0.03]
[1755813689537,7.67794937,181.48,181.47,0.03]
[1755813689726,8.27794937,181.48,181.47,0.03]
[1755813690603,21.87354338,181.48,181.47,0.03]
[1755813692215,64.13354338,181.48,181.47,0.03]
[1755813699460,60.41875834,181.48,181.47,0.03]
[1755813699637,64.13113399,181.48,181.47,0.03]
[1755813700344,64.19113399,181.48,181.47,0.03]
[1755813706752,64.19113399,181.48,181.46,0.03]
[1755813706753,13.87991715,181.47,181.46,0.03]
[1755813707046,21.8722766,181.47,181.46,0.03]
[1755813707671,21.2722766,181.47,181.46,0.03]
[1755813718566,21.2722766,181.47,181.46,0.73]
[1755813719179,7.67668259,181.47,181.46,0.73]
[1755813723179,7.67668259,181.47,181.46,0.03]
[1755813723394,7.67668259,181.47,181.46,0.73]
[1755813731162,12.31858041,181.47,181.46,0.73]
[1755813732303,7.67668259,181.47,181.46,0.73]
[1755813734164,7.73668259,181.47,181.46,0.73]
[1755813735292,12.37858041,181.47,181.46,0.73]
[1755813739201,12.37858041,181.47,181.46,0.03]
[1755813741000,12.97858041,181.47,181.46,0.03]
[1755813741371,12.37858041,181.47,181.46,0.03]
[1755813741586,12.37858041,181.47,181.46,0.73]
[1755813741792,54.63858041,181.47,181.46,0.73]
[1755813742574,54.63858041,181.47,181.46,0.03]
[1755813742772,54.63858041,181.47,181.46,0.73]
[1755813744105,54.63858041,181.47,181.46,0.03]
[1755813744806,0.28432314,181.46,181.45,0.03]
[1755813744975,7.67668259,181.46,181.45,0.03]
[1755813745503,12.91858041,181.46,181.45,0.03]
[1755813745707,27.03394517,181.46,181.45,0.03]
[1755813746001,27.03394517,181.46,181.45,0.73]
[1755813746199,27.03394517,181.46,181.45,0.03]
[1755813747786,12.31858041,181.46,181.45,0.73]
[1755813748283,13.59559401,181.41,181.18,10.0]
[1755813748474,53.79444899,181.4,181.23,9.19665659]
[1755813748678,3.67884119,181.34,181.29,2.211717]
[1755813748901,3.67884119,181.38,181.32,26.0]
[1755813749083,3.72808224,181.37,181.32,26.0]
[1755813749403,3.67884119,181.38,181.32,26.0]
[1755813749700,3.72549729,181.37,181.36,26.0]
[1755813750015,46.29884119,181.41,181.36,26.0]
[1755813750298,3.72515256,181.4,181.37,0.7]
[1755813750497,3.72515256,181.39,181.37,0.7]
[1755813750702,3.72515256,181.38,181.37,0.7]
[1755813751809,3.72515256,181.38,181.37,17.279623]
[1755813756810,9.48309152,181.38,181.37,17.279623]
[1755813757182,3.72515256,181.38,181.37,17.279623]
[1755813757408,9.48309152,181.38,181.37,17.279623]
[1755813758907,3.72515256,181.38,181.37,17.279623]
[1755813759220,9.48309152,181.38,181.37,17.279623]
[1755813759893,9.48309152,181.38,181.37,16.579623]
[1755813760098,9.48309152,181.38,181.37,17.279623]
[1755813771023,9.47966299,181.38,181.37,17.279623]
[1755813772322,7.40731281,181.38,181.37,17.279623]
[1755813773722,3.72172403,181.38,181.37,17.279623]
[1755813775632,7.40731281,181.38,181.37,17.279623]
[1755813777427,7.40731281,181.38,181.37,26.7]
[1755813777926,7.40731281,181.38,181.37,0.7]
[1755813778317,7.40731281,181.38,181.37,26.7]
[1755813780624,3.72172403,181.38,181.37,26.7]
[1755813780797,3.72172403,181.38,181.37,0.7]
[1755813783934,3.78172403,181.38,181.37,0.7]
[1755813784631,8.18731281,181.38,181.36,16.58054]
[1755813784930,3.72172403,181.37,181.36,0.66]
[1755813785134,3.72172403,181.37,181.36,8.847313]
[1755813788636,3.72172403,181.37,181.36,8.187313]
[1755813790043,4.44172403,181.37,181.36,8.187313]
[1755813790333,3.72172403,181.37,181.36,8.187313]
[1755813790536,3.72172403,181.37,181.35,26.0]
[1755813790720,3.72172403,181.36,181.35,26.66]
[1755813792135,3.72172403,181.36,181.35,30.405589]
[1755813792948,4.44172403,181.36,181.35,29.745589]
[1755813793239,3.72172403,181.36,181.35,29.745589]
[1755813793941,3.72172403,181.36,181.35,30.405589]
[1755813795643,4.44172403,181.36,181.35,3.745589]
[1755813795941,3.72172403,181.36,181.35,4.405589]
[1755813798139,3.72172403,181.36,181.35,29.745589]
[1755813799550,3.72172403,181.36,181.35,3.745589]
[1755813800642,3.72172403,181.36,181.35,29.745589]
[1755813801648,3.78172403,181.36,181.35,3.745589]
[1755813802056,3.78172403,181.36,181.35,4.445589]
[1755813802351,3.78172403,181.36,181.35,30.445589]
[1755813802516,3.78172403,181.36,181.35,29.745589]
[1755813802945,3.78172403,181.36,181.35,4.445589]
[1755813804416,0.06,181.36,181.35,9.95978806]
[1755813813971,0.06,181.36,181.35,35.95978806]
[1755813814146,0.06,181.36,181.35,9.95978806]
[1755813831579,0.06,181.36,181.35,35.95978806]
[1755813831785,0.06,181.36,181.35,9.95978806]
[1755813844093,0.06,181.36,181.35,9.25978806]
[1755813844566,0.06,181.36,181.35,9.95978806]
[1755813852988,0.06,181.36,181.35,52.25978806]
[1755813854700,0.06,181.36,181.35,65.85538207]
[1755813855815,0.06,181.36,181.35,66.13970521]
[1755813856016,0.06,181.36,181.35,69.29893654]
[1755813856385,0.06,181.38,181.36,13.59559401]
[1755813856605,0.06,181.38,181.37,47.813591]
[1755813857007,0.06,181.38,181.37,48.503591]
[1755813857189,0.06,181.38,181.37,51.662822]
[1755813859291,0.06,181.38,181.37,65.54273915]
[1755813862603,0.06,181.38,181.37,68.70197048]
[1755813864312,0.06,181.38,181.37,65.54273915]
[1755813866415,0.06,181.38,181.37,65.64273915]
[1755813875525,0.06,181.38,181.37,23.24273915]
[1755813875721,0.06,181.38,181.37,65.58273915]
[1755813877394,0.06,181.38,181.37,68.74197048]
[1755813883631,0.06,181.38,181.37,52.40197048]
[1755813883828,0.06,181.38,181.37,68.70197048]
[1755813885819,0.06,181.4,181.38,13.59559401]
[1755813886007,0.06,181.4,181.39,42.3]
[1755813886533,0.06,181.4,181.39,44.509762]
[1755813886920,0.06,181.4,181.39,50.02274507]
[1755813888110,0.06,181.4,181.39,7.72274507]
[1755813888311,0.06,181.4,181.39,50.02274507]
[1755813890813,0.06,181.4,181.39,50.71274507]
[1755813892836,0.06,181.4,181.39,64.59266222]
[1755813893038,0.06,181.42,181.4,13.59559401]
[1755813893341,0.06,181.42,181.41,42.28]
[1755813893728,0.06,181.42,181.41,45.499231]
[1755813895039,0.06,181.42,181.41,51.01160628]
[1755813896542,0.06,181.42,181.41,9.42160628]
[1755813896746,0.06,181.42,181.41,51.70160628]
[1755813897645,0.06,181.42,181.41,51.01160628]
[1755813898547,0.06,181.42,181.41,51.70160628]
[1755813902251,0.06,181.42,181.41,51.01160628]
[1755813902848,0.06,181.42,181.41,51.70160628]
[1755813920780,0.06,181.42,181.41,9.42160628]
[1755813921073,0.06,181.42,181.41,51.68160628]
[1755813923265,0.06,181.42,181.41,65.56152343]
[1755813923473,1e-08,181.42,181.41,68.72075476]
[1755813933690,1e-08,181.42,181.41,65.56152343]
[1755813933856,1e-08,181.42,181.41,68.72075476]
[1755813939810,1e-08,181.42,181.41,26.46075476]
[1755813939977,1e-08,181.42,181.41,68.72075476]
[1755813940789,1e-08,181.42,181.41,26.46075476]
[1755813941101,1e-08,181.42,181.41,68.72075476]
[1755813942889,1e-08,181.42,181.41,26.46075476]
[1755813943085,1e-08,181.42,181.41,68.72075476]
[1755813943795,1e-08,181.42,181.41,65.56152343]
[1755813943985,1e-08,181.42,181.41,68.72075476]
[1755813944880,1e-08,181.42,181.41,26.46075476]
[1755813945077,1e-08,181.42,181.41,68.72075476]
[1755813948299,1e-08,181.42,181.41,68.75075476]
[1755813948494,1e-08,181.44,181.43,39.87991715]
[1755813948798,1e-08,181.44,181.43,59.29914848]
[1755813949303,1e-08,181.44,181.43,61.50817748]
[1755813952178,1e-08,181.44,181.43,67.0199451]
[1755813952702,1e-08,181.44,181.43,24.7599451]
[1755813952901,1e-08,181.44,181.43,67.0199451]
[1755813958579,1e-08,181.44,181.43,63.86071377]
[1755813958904,0.06,181.46,181.44,13.59559401]
[1755813959108,0.06,181.46,181.45,42.24]
[1755813959684,0.06,181.46,181.45,44.44903]
[1755813959887,0.06,181.46,181.45,49.96019009]
[1755813960390,0.06,181.46,181.45,53.77942142]
[1755813960584,0.06,181.46,181.45,11.53942142]
[1755813960780,0.06,181.46,181.45,66.99933857]
[1755813960984,0.06,181.46,181.45,67.65933857]
[1755813961786,0.06,181.47,181.46,19.39077353]
[1755813961981,0.06,181.47,181.46,23.21000486]
[1755813962592,0.06,181.47,181.46,25.41879086]
[1755813965226,0.06,181.47,181.46,24.75879086]
[1755813966715,0.06,181.47,181.46,25.41879086]
[1755813968713,0.06,181.47,181.46,24.75879086]
[1755813969223,0.06,181.47,181.46,25.41879086]
[1755813971587,0.06,181.47,181.46,67.65879086]
[1755813976925,1e-08,181.47,181.46,67.65879086]
[1755813980724,0.06,181.49,181.46,67.65879086]
[1755813980725,1e-08,181.48,181.46,67.65879086]
[1755813980922,1e-08,181.48,181.47,17.69914848]
[1755813981423,1e-08,181.48,181.47,19.90781148]
[1755813982508,0.06,181.5,181.49,19.10553946]
[1755813982828,0.06,181.5,181.49,64.76909393]
[1755813983126,0.06,181.5,181.49,67.63739093]
[1755813983296,0.06,181.5,181.49,64.4781596]
[1755813983497,0.06,181.5,181.49,67.63739093]
[1755813984700,0.06,181.51,181.5,13.87991715]
[1755813984899,0.06,181.51,181.5,17.69914848]
[1755813985399,0.06,181.51,181.5,19.90732448]
[1755813987510,0.06,181.51,181.5,25.41696635]
[1755813988030,0.06,181.52,181.5,25.41696635]
[1755813988208,0.06,181.52,181.51,59.91914848]
[1755813988803,0.06,181.52,181.51,62.12720248]
[1755813989114,0.06,181.52,181.51,67.6365408]
[1755813991831,0.06,181.52,181.51,64.47730947]
[1755813992129,0.06,181.52,181.51,67.6365408]
[1755813992921,1e-08,181.52,181.51,67.6365408]
[1755813994023,1e-08,181.52,181.51,25.4165408]
[1755813994208,1e-08,181.52,181.51,67.6165408]
[1755813995208,1e-08,181.52,181.51,25.4165408]
[1755813995409,1e-08,181.52,181.51,67.6165408]
[1755813995816,1e-08,181.52,181.51,25.4165408]
[1755813996018,1e-08,181.52,181.51,67.6165408]
[1755813999154,1e-08,181.53,181.52,19.10462882]
[1755813999654,1e-08,181.53,181.52,22.92386015]
[1755813999855,1e-08,181.53,181.52,25.13167015]
[1755814002260,1e-08,181.53,181.52,21.97243882]
[1755814002428,1e-08,181.53,181.52,25.13167015]
[1755814005050,1e-08,181.53,181.52,67.33167015]
[1755814007067,1e-08,181.53,181.52,66.95599329]
[1755814007941,1e-08,181.53,181.52,67.63599329]
[1755814015871,1e-08,181.53,181.52,67.66599329]
[1755814022166,1e-08,181.53,181.52,67.64599329]
[1755814029864,1e-08,181.53,181.52,25.46599329]
[1755814030188,1e-08,181.53,181.52,67.64599329]
[1755814036579,1e-08,181.54,181.53,0.28432314]
[1755814036781,1e-08,181.54,181.53,17.73914848]
[1755814037401,1e-08,181.54,181.53,25.45568981]
[1755814044401,0.06,181.55,181.53,25.45568981]
[1755814044402,1e-08,181.55,181.54,17.03914848]
[1755814044597,1e-08,181.55,181.54,59.19914848]
[1755814044777,1e-08,181.55,181.54,59.89914848]
[1755814045289,1e-08,181.55,181.54,65.40757637]
[1755814046173,1e-08,181.55,181.54,67.61526437]
[1755814048284,0.61000001,181.55,181.54,66.63094123]
[1755814048482,0.61000001,181.55,181.54,49.87611589]
[1755814048684,0.61000001,181.55,181.54,66.63094123]
[1755814051809,1e-08,181.55,181.54,66.63094123]
[1755814053411,1e-08,181.55,181.54,24.47094123]
[1755814053610,1e-08,181.55,181.54,66.63094123]
[1755814054597,1e-08,181.55,181.54,67.61526437]
[1755814055197,1e-08,181.58,181.57,26.0]
[1755814055522,1e-08,181.58,181.57,71.29923133]
[1755814055716,1e-08,181.58,181.57,76.80674909]
[1755814056016,1e-08,181.58,181.57,95.10661024]
[1755814065096,1e-08,181.6,181.58,13.87991715]
[1755814065302,1e-08,181.6,181.59,59.17914848]
[1755814065813,1e-08,181.6,181.59,61.38634948]
[1755814066303,1e-08,181.6,181.59,66.89326065]
[1755814066501,1e-08,181.6,181.59,67.59326065]
[1755814071612,1e-08,181.6,181.59,73.20823828]
[1755814080357,1e-08,181.62,181.61,13.59559401]
[1755814080539,1e-08,181.63,181.62,13.87991715]
[1755814080743,1e-08,181.63,181.62,17.75914848]
[1755814081138,1e-08,181.63,181.62,25.47198502]
[1755814081726,1e-08,181.63,181.62,21.59275369]
[1755814081925,1e-08,181.63,181.62,24.75198502]
[1755814082144,1e-08,181.63,181.62,21.59275369]
[1755814082445,1e-08,181.63,181.62,24.75198502]
[1755814082831,1e-08,181.63,181.62,25.47198502]
[1755814098256,1e-08,181.63,181.62,67.57198502]
[1755814098853,1e-08,181.63,181.62,67.60198502]
[1755814099163,1e-08,181.63,181.62,25.50198502]
[1755814099364,1e-08,181.63,181.62,67.60198502]
[1755814111550,1e-08,181.64,181.63,0.28432314]
[1755814111778,1e-08,181.64,181.63,17.72914848]
[1755814112173,1e-08,181.64,181.63,19.93586248]
[1755814112567,1e-08,181.64,181.63,25.44156087]
[1755814115982,1e-08,181.64,181.63,25.47156087]
[1755814117485,1e-08,181.64,181.63,67.57156087]
[1755814119356,1e-08,181.64,181.63,67.55156087]
[1755814127609,1e-08,181.65,181.63,67.55156087]
[1755814127761,1e-08,181.65,181.64,4.09355447]
[1755814128283,1e-08,181.65,181.64,6.30014647]
[1755814129984,1e-08,181.65,181.64,53.88554175]
[1755814138307,1e-08,181.65,181.64,53.23554175]
[1755814138812,1e-08,181.65,181.64,53.88554175]
[1755814146226,1e-08,181.65,181.64,11.80554175]
[1755814146406,1e-08,181.65,181.64,53.86554175]
[1755814147227,1e-08,181.65,181.64,11.80554175]
[1755814147400,1e-08,181.65,181.64,53.86554175]
[1755814148326,1e-08,181.65,181.64,50.70631042]
[1755814148529,1e-08,181.65,181.64,53.86554175]
[1755814149019,1e-08,181.65,181.64,67.46113576]
[1755814149329,1e-08,181.65,181.64,67.49113576]
[1755814149715,0.06,181.67,181.65,13.87991715]
[1755814149897,0.06,181.67,181.66,42.34432314]
[1755814150101,0.06,181.67,181.66,42.99432314]
[1755814150423,0.06,181.67,181.66,45.20067214]
[1755814150622,0.06,181.67,181.66,48.35990347]
[1755814150930,0.06,181.67,181.66,53.86469263]
[1755814151132,0.06,181.67,181.66,53.21469263]
[1755814152519,132.4,181.78,181.7,26.0]
[1755814152827,3.15923133,181.72,181.71,26.0]
[1755814153038,6.87767333,181.72,181.71,26.0]
[1755814153330,6.87767333,181.72,181.71,42.547616]
[1755814155729,3.15923133,181.72,181.71,48.05089044]
[1755814156940,3.15923133,181.73,181.71,90.11089044]
[1755814157419,3.15923133,181.73,181.71,73.56327444]
[1755814157621,3.15923133,181.73,181.72,16.546703]
[1755814160038,174.46,181.78,181.75,26.0]
[1755814160227,3.15923133,181.76,181.75,26.0]
[1755814160426,11.00666062,181.76,181.75,26.0]
[1755814160734,11.00666062,181.76,181.75,42.546703]
[1755814164719,11.00618456,181.76,181.75,42.546703]
[1755814166122,11.06618456,181.76,181.75,42.546703]
[1755814167733,6.93653513,181.76,181.75,42.546703]
[1755814167930,11.06613703,181.76,181.75,42.546703]
[1755814168449,11.06619632,181.76,181.75,42.546703]
[1755814170832,11.06620179,181.76,181.75,42.546703]
[1755814173357,11.06620179,181.76,181.75,43.256703]
[1755814173650,11.06620179,181.76,181.75,42.546703]
[1755814175352,11.06620179,181.76,181.75,43.256703]
[1755814175760,11.06620179,181.76,181.75,42.546703]
[1755814176069,6.93653513,181.76,181.75,43.256703]
[1755814185470,3.21923133,181.76,181.75,43.256703]
[1755814190674,0.06,181.76,181.75,43.256703]
[1755814190876,3.21923133,181.76,181.75,43.256703]
[1755814192178,3.21923133,181.76,181.75,48.75876627]
[1755814193566,0.06,181.76,181.75,48.75876627]
[1755814194163,0.06,181.76,181.75,43.256703]
[1755814201279,0.06,181.76,181.75,48.75876627]
[1755814223214,0.06,181.76,181.75,90.75876627]
[1755814225008,0.06,181.76,181.75,48.75876627]
[1755814225184,0.06,181.76,181.75,90.75876627]
[1755814227309,3.77913731,181.76,181.75,90.75876627]
[1755814228111,0.06,181.76,181.75,90.75876627]
[1755814228514,3.77933429,181.76,181.75,90.75876627]
[1755814229011,0.06,181.76,181.75,90.75876627]
[1755814229882,3.77943867,181.76,181.75,48.75876627]
[1755814236013,3.77943867,181.76,181.75,90.75876627]
[1755814242419,0.06,181.76,181.75,90.75876627]
[1755814247340,0.06,181.76,181.75,48.75876627]
[1755814247516,3.78038725,181.76,181.75,48.75876627]
[1755814259749,0.06,181.76,181.75,48.75876627]
[1755814260550,3.78040544,181.76,181.75,48.75876627]
[1755814262745,0.06,181.76,181.75,48.75876627]
[1755814264630,0.06,181.76,181.75,65.51359161]
[1755814272959,0.06,181.76,181.75,65.79791475]
[1755814273256,1e-08,181.76,181.75,65.79791475]
[1755814273638,1e-08,181.76,181.75,70.14975341]
[1755814274959,1e-08,181.76,181.75,65.79791475]
[1755814277465,0.06,181.8,181.79,39.59559401]
[1755814277638,1e-08,181.8,181.79,85.01914848]
[1755814277837,1e-08,181.8,181.79,85.73914848]
[1755814278034,1e-08,181.8,181.79,95.73914848]
[1755814278233,1e-08,181.8,181.79,99.44462248]
[1755814279245,1e-08,181.8,181.79,104.94547511]
[1755814281687,1e-08,181.82,181.81,0.28432314]
[1755814281897,1e-08,181.82,181.81,55.83991715]
[1755814282098,1e-08,181.82,181.81,56.55991715]
[1755814282603,1e-08,181.82,181.81,62.06016466]
[1755814282985,1e-08,181.82,181.81,68.37862699]
[1755814286377,0.51,181.89,181.87,13.59559401]
[1755814286581,0.51,181.89,181.88,67.96]
[1755814287078,0.51,181.89,181.88,71.119231]
[1755814288694,0.51,181.89,181.88,76.61736163]
[1755814290290,0.51,181.89,181.88,34.65736163]
[1755814290610,0.51,181.89,181.88,45.119231]
[1755814292320,0.51,181.89,181.88,50.61736163]
[1755814292890,0.51,181.89,181.88,8.65736163]
[1755814293117,0.51,181.89,181.88,50.59736163]
[1755814296910,0.06,181.93,181.91,26.0]
[1755814297091,3.44355447,181.92,181.88,3.159231]
[1755814297296,3.15923133,181.89,181.8,45.13923133]
[1755814297504,3.15923133,181.85,181.8,5.50034148]
[1755814297714,0.51,181.84,181.82,6.784606]
[1755814297916,0.79432314,181.84,181.75,0.03]
[1755814298091,0.79432314,181.84,181.76,6.784606]
[1755814298285,0.41,181.83,181.76,6.784606]